Cogmind - Beta 13 @@@ ROGUE MODE // 2024.04.11 @ 00:14:59 Player: Bbenedict8 Result: Destroyed by Heavy Explosive Trap Performance ------------- Evolutions (3) 1500 Regions Visited (4) 800 Robots Destroyed (24) 120 Value Destroyed (651) 651 Prototype IDs (2) 40 Alien Tech Used (0) 0 Bonus (0) 0 TOTAL SCORE: 3111 Bonus ------- None Cogmind --------- Core Integrity 0/700 Matter 299/300 Energy 68/100 System Corruption 0% Temperature Cool (0) Movement Hovering (46) Location -7/Factory Parts ------- > --- POWER (2) -------- (None) > --- PROPULSION (4) --- Cooled Airjet Cooled Airjet Cooled Airjet Cooled Airjet > --- UTILITY (5) ------ Visual Processing Unit Core Analyzer > --- WEAPON (2) ------- Particle Gun Autogun > --- INVENTORY (5) ---- VTOL Module Small Storage Unit Peak State ------------ > --- POWER ------------ (None) > --- PROPULSION ------- Cooled Airjet Cooled Airjet Cooled Airjet Cooled Airjet > --- UTILITY ---------- Visual Processing Unit Core Analyzer > --- WEAPON ----------- Particle Gun Autogun > --- INVENTORY -------- VTOL Module Small Storage Unit [Rating: 30] Favorites ----------- Power Ion Engine Engine Ion Engine Power Core Light Nuclear Core Propulsion Wheel Treads Light Treads Leg Aluminum Leg Wheel Wheel Hover Unit Cooled Airjet Flight Unit VTOL Module Utility Small Storage Unit Device Trap Scanner Storage Small Storage Unit Processor Visual Processing Unit Protection Improved Utility Shielding Weapon EM Pulse Gun Energy Gun EM Pulse Gun Ballistic Gun High-powered Shotgun Launcher Grenade Launcher Build | -11 -10 -9 -8 -7 ------- Run | Yrd Mat Mat Mat Fac Slots Evolved 6 | . . 2 2 2 Power 1 | . . . . 1 Propulsion 2 | . . . 1 1 Utility 3 | . . 2 1 . Weapon . | . . . . . Parts Attached 49 | 6 2 5 10 26 Power 5 | 1 . 1 1 2 Engine 4 | 1 . 1 1 1 Core 1 | . . . . 1 Reactor . | . . . . . Propulsion 15 | 2 1 . 2 10 Treads 2 | . . . 1 1 Leg 2 | . . . . 2 Wheel 4 | 2 1 . 1 . Hover 4 | . . . . 4 Flight 3 | . . . . 3 Utility 12 | 1 1 2 2 6 Device 5 | . 1 1 1 2 Storage 2 | 1 . . . 1 Processor 2 | . . . . 2 Hackware . | . . . . . Protection 3 | . . 1 1 1 Artifact . | . . . . . Weapon 17 | 2 . 2 5 8 Energy Gun 7 | 2 . 1 . 4 Energy Cannon . | . . . . . Ballistic Gun 6 | . . 1 2 3 Ballistic Cannon . | . . . . . Launcher 4 | . . . 3 1 Special Weapon . | . . . . . Impact Weapon . | . . . . . Slashing Weapon . | . . . . . Piercing Weapon . | . . . . . Special Melee Weapon . | . . . . . Unidentified Prototypes 2 | . . . . 2 Parts Lost 28 | . 1 3 6 18 Power 4 | . . 1 1 2 Propulsion 8 | . 1 . 3 4 Utility 7 | . . . 1 6 Weapon 9 | . . 2 1 6 Highest Loss Streak 13 | . 1 3 5 13 To Critical Strikes . | . . . . . Average Slot Usage (%) 71 | . 85 81 76 55 Engine 7 | . 14 7 8 2 Treads 3 | . . . 8 2 Wheel 8 | . 27 22 2 . Flight 2 | . . . . 7 Device 13 | . . 16 24 8 Storage 8 | . 14 11 9 3 Processor 2 | . . . . 7 Protection 6 | . . 5 11 6 Energy Gun 7 | . 28 13 . 2 Ballistic Gun 5 | . . 5 9 3 Launcher 1 | . . . 2 2 Naked Turns . | . . . . . Heaviest Build 24 | 14 15 17 24 24 Greatest Support 40 | 20 20 20 36 40 Greatest Overweight (x) 6 | . 1 . 6 4 Average Overweight (x) . | . . . . . Largest Inventory Capacity 8 | 8 8 8 8 8 Average Capacity 7 | 7 8 8 8 6 Most Carried 8 | 4 3 4 8 8 Average Carried 4 | 2 2 2 6 4 Final Capacity 8 | 8 8 8 8 5 Final Carried 6 | 2 2 4 6 2 Class Distribution -------------------- 91% | Mutant 8% | Scavenger-Sprinter Dominant Class ---------------- Mutant | -10/Materials Mutant | -9/Materials Mutant | -8/Materials Mutant | -7/Factory Resources | -11 -10 -9 -8 -7 ----------- Run | Yrd Mat Mat Mat Fac Matter Collected 913 | 119 102 54 321 317 Remotely 126 | . . . . 126 Salvage Created 631 | . 175 54 153 249 Parts 34 | . 7 4 13 10 Haulers Intercepted . | . . . . . Recyclers Shooed 1 | . 1 . . . Parts Field Recycled . | . . . . . Retrieved Matter . | . . . . . Parts Self-Destructed . | . . . . . Prevented . | . . . . . Kills | -11 -10 -9 -8 -7 ------- Run | Yrd Mat Mat Mat Fac Combat Hostiles Destroyed 20 | . 2 3 9 6 Guns 15 | . 1 3 6 5 AOE 5 | . 1 . 3 1 Classes Destroyed 8 | . 3 1 2 2 Worker 1 | . 1 . . . Recycler 1 | . 1 . . . Watcher 2 | . . . 2 . Swarmer 11 | . . 3 6 2 Grunt 4 | . 2 . . 2 Duelist 1 | . . . . 1 Sentry 3 | . . . 3 . Programmer 1 | . . . . 1 Best Kill Streak 4 | . 4 2 4 3 Combat Bots Only 4 | . 1 2 4 3 Max Kills in Single Turn 3 | . 2 1 3 1 Gunslinging . | . . . . . Exploded 3 | . 1 . 3 1 Melee . | . . . . . Uniques/NPCs Destroyed . | . . . . . Combat | -11 -10 -9 -8 -7 -------- Run | Yrd Mat Mat Mat Fac Hostile Shots Fired 274 | . 26 18 59 171 Missed 72 | . 11 3 14 44 Damage Taken 3025 | . 202 124 661 2038 Core 999 | . 49 33 204 713 Absorbed by Shields . | . . . . . Redirected to Shielding 110 | . . . 65 45 Core Remaining (%) 83 | 100 80 91 62 . Volleys Fired 106 | . 13 11 31 51 Largest 2 | . 2 2 2 2 Hottest 86 | . 80 80 64 86 Shots Fired 141 | . 26 18 44 53 Gun 128 | . 26 18 35 49 Cannon . | . . . . . Launcher 13 | . . . 9 4 Special . | . . . . . Kinetic 63 | . . 1 35 27 Thermal 30 | . . 8 . 22 Explosive 9 | . . . 8 1 Electromagnetic 39 | . 26 9 1 3 Robot Hit Streak 8 | . 6 2 8 4 Robot Miss Streak 5 | . 2 5 3 3 Penetration Max . | . . . . . Secondary Targets . | . . . . . Shots Hit Robots 86 | . 17 8 32 29 Core Hits 39 | . 6 3 15 15 Critical Kills . | . . . . . Critical Parts Destroyed . | . . . . . Critical Strikes 1 | . . . . 1 Burn 1 | . . . . 1 Melee Attacks . | . . . . . Impact . | . . . . . Slashing . | . . . . . Piercing . | . . . . . Sneak Attacks . | . . . . . Combat Hostiles . | . . . . . Follow-up Attacks . | . . . . . Damage Inflicted 2401 | . 450 98 1034 819 Guns 1281 | . 239 98 475 469 Cannons . | . . . . . Explosions 1120 | . 211 . 559 350 Melee . | . . . . . Ramming . | . . . . . Kinetic 685 | . . 13 475 197 Thermal 592 | . 211 43 . 338 Explosive 551 | . . . 487 64 Electromagnetic 573 | . 239 42 72 220 Impact . | . . . . . Slashing . | . . . . . Piercing . | . . . . . Highest Corruption . | . . . . . Average Corruption . | . . . . . Corruption Purged . | . . . . . Corruption Blocked . | . . . . . Overload Shots . | . . . . . Overflow Damage 217 | . 32 . 181 4 Projectiles . | . . . . . Explosions 217 | . 32 . 181 4 Melee . | . . . . . Knockbacks . | . . . . . Impact . | . . . . . Kinetic . | . . . . . Secondary . | . . . . . Self-Inflicted Damage 145 | . 25 . 120 . Shots 3 | . 1 . 2 . Rammed . | . . . . . Targets Rammed . | . . . . . Kicked . | . . . . . Crushed . | . . . . . Highest Temperature 318 | . 318 . 1 171 Average Temperature 104 | . 160 . 1 60 Received Heat Transfer 453 | . 99 . 117 237 Siege Activations . | . . . . . Robots Corrupted . | . . . . . Combat Hostiles . | . . . . . Parts Fried 1 | . . 1 . . Impact Corruptions . | . . . . . Robots Melted . | . . . . . Combat Hostiles . | . . . . . Parts Melted 1 | . . . . 1 Heat Transferred 1107 | . 250 100 . 757 Parts Sabotaged . | . . . . . Parts Stolen . | . . . . . Parts Stripped . | . . . . . Power Chain Reactions 4 | . 3 . . 1 Alert | -11 -10 -9 -8 -7 ------- Run | Yrd Mat Mat Mat Fac Peak Influence 210 | . 72 146 183 210 Initial 61 | . . 29 61 12 Average 70 | . 23 104 97 66 Maximum Alert Level 1 | . . . . 1 Low Security (%) 98 | 100 100 100 100 96 Level 1 1 | . . . . 3 Level 2 . | . . . . . Level 3 . | . . . . . Level 4 . | . . . . . Level 5 . | . . . . . High Security . | . . . . . Max Security . | . . . . . Squads Dispatched 13 | . . 1 7 5 Investigation 3 | . . . 1 2 Extermination 1 | . . . . 1 Reinforcement 5 | . . 1 3 1 Assault . | . . . . . Garrison 4 | . . . 3 1 Intercept . | . . . . . Searches Triggered . | . . . . . Construction Impeded . | . . . . . Haulers Reinforced . | . . . . . Active Scanning Responses . | . . . . . Cargo Convoy Interrupts . | . . . . . Stealth | -11 -10 -9 -8 -7 --------- Run | Yrd Mat Mat Mat Fac Distress Signals 3 | . . . 1 2 Communications Jammed . | . . . . . Distress Signals . | . . . . . Times Spotted 43 | . 7 5 12 19 Peak Tracking Total 7 | . 3 3 4 7 Tactical Retreats 12 | . 1 1 1 9 Traps | -11 -10 -9 -8 -7 ------- Run | Yrd Mat Mat Mat Fac Traps Triggered 3 | . . . 1 2 Indirectly . | . . . . . Trap Hack Attempts . | . . . . . Triggered . | . . . . . Disarmed . | . . . . . Reprogrammed . | . . . . . Reused . | . . . . . Traps Extracted . | . . . . . Installed . | . . . . . Triggered . | . . . . . Machines | -11 -10 -9 -8 -7 ---------- Run | Yrd Mat Mat Mat Fac Machines Disabled 3 | . . 1 2 . Max in Single Turn 1 | . . 1 1 . Machines Repaired . | . . . . . Machines Dismantled . | . . . . . Machines Sabotaged . | . . . . . Overloaded Fab Kills . | . . . . . Hacking | -11 -10 -9 -8 -7 --------- Run | Yrd Mat Mat Mat Fac Machines Accessed 10 | . 2 1 4 3 Terminals 6 | . 2 . 2 2 Fabricators 1 | . . . . 1 Repair Stations . | . . . . . Recycling Units . | . . . . . Scanalyzers 2 | . . 1 1 . Garrison Access 1 | . . . 1 . Total Hacks 21 | . 2 4 11 4 Successful 14 | . 1 4 6 3 Failed 7 | . 1 . 5 1 Catastrophic . | . . . . . Database Lockouts . | . . . . . Manual . | . . . . . Terminals 12 | . 2 . 8 2 Fabricators 2 | . . . . 2 Repair Stations . | . . . . . Recycling Units . | . . . . . Scanalyzers 6 | . . 4 2 . Garrison Access 1 | . . . 1 . Terminal Hacks 5 | . 1 . 3 1 Record 2 | . . . 2 . Open DSF 1 | . . . . 1 Recall Investigation 1 | . 1 . . . Hauler Manifests 1 | . . . 1 . Fabricator Hacks 2 | . . . . 2 Load Schematic 1 | . . . . 1 Build 1 | . . . . 1 Repair Station Hacks . | . . . . . Recycling Unit Hacks . | . . . . . Scanalyzer 6 | . . 4 2 . Insert Component 3 | . . 2 1 . Analyze 3 | . . 2 1 . Garrison Access Hacks 1 | . . . 1 . Unlock Access 1 | . . . 1 . Unauthorized Hacks . | . . . . . Terminals . | . . . . . Fabricators . | . . . . . Repair Stations . | . . . . . Recycling Units . | . . . . . Scanalyzers . | . . . . . Garrison Access . | . . . . . Data Cores Recovered . | . . . . . Used . | . . . . . Hacking Detections 4 | . 1 . 2 1 Full Trace Events 2 | . . . 1 1 Feedback Events . | . . . . . Feedback Blocked . | . . . . . Robot Schematics Acquired . | . . . . . Robots Built . | . . . . . Authchips . | . . . . . Time . | . . . . . Total Robot Build Rating . | . . . . . Part Schematics Acquired 3 | . . 2 1 . Parts Built 1 | . . . . 1 Authchips . | . . . . . Time 51 | . . . . 51 Total Part Build Rating 1 | . . . . 1 Parts Repaired . | . . . . . Time . | . . . . . Parts Recycled . | . . . . . Recycled Matter . | . . . . . Retrieved Matter . | . . . . . Retrieved Components . | . . . . . Parts Scanalyzed 3 | . . 2 1 . Part Schematics Acquired 3 | . . 2 1 . Parts Damaged . | . . . . . Bothacking | -11 -10 -9 -8 -7 ------------ Run | Yrd Mat Mat Mat Fac Used RIF Installer . | . . . . . Robots Hacked . | . . . . . Non-combat . | . . . . . Combat . | . . . . . Robot Hacks Applied . | . . . . . Relay Couplers Released . | . . . . . Fabnet Peak Effective % . | . . . . . Robots Rewired . | . . . . . Allies Hacked . | . . . . . Hacks Repelled . | . . . . . Allies | -11 -10 -9 -8 -7 -------- Run | Yrd Mat Mat Mat Fac Total Allies . | . . . . . Largest Group . | . . . . . Highest-Rated Group . | . . . . . Highest-Rated Ally . | . . . . . Total Orders . | . . . . . Ally Attacks . | . . . . . Total Damage . | . . . . . Kills . | . . . . . Allies Corrupted . | . . . . . Allies Melted . | . . . . . Intel | -11 -10 -9 -8 -7 ------- Run | Yrd Mat Mat Mat Fac Robot Analysis Total . | . . . . . Derelict Logs Recovered . | . . . . . Drone Launches . | . . . . . Drone Recoveries . | . . . . . Exploration | -11 -10 -9 -8 -7 ------------- Run | Yrd Mat Mat Mat Fac Turns Passed 2723 | 75 556 174 1036 882 Spaces Moved 2156 | 59 230 166 533 1168 Core 13 | 4 . . 2 7 Treads 556 | . . . 453 103 Legs 35 | . . . . 35 Wheels 529 | 55 230 166 78 . Hover 111 | . . . . 111 Flight 912 | . . . . 912 Fastest Speed 29 | 50 80 80 80 29 Average Speed 90 | 77 80 80 165 59 Slowest Speed 350 | 80 95 80 350 250 Overloaded Moves . | . . . . . Propulsion Burnouts . | . . . . . Robots Hopped 2 | . . . . 2 Cave-ins Triggered . | . . . . . Exploration Rate (%) 25 | 3 38 16 46 24 Regions Visited 4 Branch Regions . Pre-discovered Areas . | . . . . . Known Exits Taken . | . . . . . Unknown Exits Taken 4 | 1 1 1 1 . Scrap Searched . | . . . . . Spaces Dug . | . . . . . Terrain Destroyed 86 | . 16 . 65 5 Melee . | . . . . . Projectile . | . . . . . AOE 86 | . 16 . 65 5 Terrain Rammed . | . . . . . Walls Destroyed . | . . . . . Machines Disabled . | . . . . . Actions | -11 -10 -9 -8 -7 --------- Run | Yrd Mat Mat Mat Fac Total 2804 | 87 575 188 647 1307 Wait 430 | 15 329 . 59 27 Move 2148 | 58 229 165 532 1164 Hop 2 | . . . . 2 Pick Up 49 | 8 2 7 10 22 Fast Attach . | . . . . . Attach 47 | 6 2 5 9 25 Detach 9 | . . . 3 6 Swap 2 | . . . 1 1 Drop 11 | . . . 2 9 Fire 106 | . 13 11 31 51 Melee . | . . . . . Ram . | . . . . . Kick . | . . . . . Crush . | . . . . . Escape Stasis . | . . . . . Rewire . | . . . . . Trap . | . . . . . Miscellaneous . | . . . . . Route ------- -11/Scrapyard -10/Materials (discovered 3 exits: *Mat x2 / [*Min]) -9/Materials -8/Materials (discovered 3 exits: *Fac x2 / Gar) -7/Factory History --------- Turn | Location | Event 24 | -11/Scrapyard | Discovered new exit (range 16) 76 | -11/Scrapyard | Entered Materials 305 | -10/Materials | Build established: Mutant 504 | -10/Materials | Discovered new exit (range 16) 611 | -10/Materials | Discovered new exit (range 10) 626 | -10/Materials | Discovered new exit (range 10) 632 | -10/Materials | Entered another Materials area 632 | -9/Materials | Evolved 2 slots: Utility x2 708 | -9/Materials | Lost 3 parts (1p2w) 784 | -9/Materials | Discovered new exit (range 8) 806 | -9/Materials | Entered another Materials area 806 | -8/Materials | Evolved 2 slots: Propulsion x1, Utility x1 922 | -8/Materials | Lost 5 parts (1p3n1w) 1148 | -8/Materials | Garrison activated, responded to threat 1163 | -8/Materials | Met 7R-MNS 1292 | -8/Materials | Identified exit to Garrison 1392 | -8/Materials | Discovered new exit (range 16) 1806 | -8/Materials | Discovered new exit (range 13) 1842 | -8/Materials | Entered Factory 1842 | -7/Factory | Evolved 2 slots: Power x1, Propulsion x1 1843 | -7/Factory | Caught up to 7R-MNS 2206 | -7/Factory | Garrison activated, responded to threat 2209 | -7/Factory | Core integrity fell below 50% 2280 | -7/Factory | Lost 13 parts (1p2n5u5w) 2337 | -7/Factory | Fabricated Grenade Launcher? 2517 | -7/Factory | Core integrity fell below 20% 2554 | -7/Factory | Lost 4 parts (1p1n1u1w) 2724 | -7/Factory | Destroyed by Heavy Explosive Trap Last Messages --------------- 02644_ Dropped Autogun. 02645_ Dropped Particle Gun. 02645_ Dropped Kinecellerator. 02646_ Dropped Hvy. Deuterium Engine. 02648_ Acquired Prototype Hover Unit. 02653_ Identified Cld. Airjet. 02656_ Dropped Faulty Cld. Airjet. [Achievement: Universal Adapter] 02657_ Acquired Cld. Airjet. 02662_ Acquired Autogun. 02663_ Acquired Particle Gun. 02677_ Slug penetrates Wall. 02682_ ALERT: Cargo convoy en route, clear transfer corridor. 02704_ R-06 Scavenger collects Hvy. Deuterium Engine. 02716_ Slug penetrates Wall. 02718_ Acquired 69 matter. 02724_ Triggered Heavy Explosive Trap. 02724_ An explosion rips through the floor. Map ----- +----------------------------------------------------+ | ?????????????????????????????????????????????????? | | ?????????????????????????????????????????????????? | | ?????????????????????????????????????????????????? | | #############????????????????????????????????????? | | #????????????????????????????????????? | | """" #????????????????????????????????????? | | """" #????????????????????????????????????? | | """" #????????????????????????????????????? | | """" #????????????????????????????????????? | | """" #????????????????????????????????????? | | """" #????????????????????????????????????? | | ! #????????????????????????????????????? | | #????????????????????????????????????? | | #????????????????????????????????????? | | #????????????????????????????????????? | | #????????????????????????????????????? | | ######+##########????????????????????????????????? | | "" # % #????????????????????????????????? | | R" # #????????????????????????????????? | | " # #????????????????????????????????? | | # #????????????????????????????????? | | ! + #??????????????????? #???????????? | | # #????????????????? #???????????? | | +### ################ ###?????????? | | k u t ??????? | | @ ??????? | | ""G"" % ??????? | | " " ^ % ??????? | | % ???????? | | T###T######% ######### ???????? | | ##?###????#% #????????? ????????? | | ??????????# k #??????????? ????????? | | ??????????# #????????????? ????????? | | ??????????# u #??????????????? ?????????? | | ??????????# #?????????????????????????? | | ??????????# #?????????????????????????? | | ??????????# """" #?????????????????????????? | | ??????????# """" #?????????????????????????? | | ??????????# """ #?????????????????????????? | | ??????????# """" +?????????????????????????? | | ??????????# ??"" #?????????????????????????? | | ??????????# ???" #?????????????????????????? | | ?????????? ???" #?????????????????????????? | | ?????????? ??? #?????????????????????????? | | ??????????? ???" #?????????????????????????? | | ????????????????? ??????????????????????????? | | ?????????????????????????????????????????????????? | | ?????????????????????????????????????????????????? | | ?????????????????????????????????????????????????? | | ?????????????????????????????????????????????????? | +----------------------------------------------------+ Best States ------------- Heat Dissipation 41 Energy Generation 18 Energy Capacity 310 Matter Stores 300 Matter Capacity 300 Sight Range 18 Robot Scan Range 15 Terrain Scan Density 10 Armor Coverage 225 Utility Shielding 66 Evasion (%) 64 Core Analysis 6 Recoil Reduction 2 Item Schematics ----------------- Lgt. Assault Rifle | -9/Materials | Scanalyzed Grenade Launcher | -9/Materials | Scanalyzed Lrn. Tractor Beam | -8/Materials | Scanalyzed Robot Schematics ------------------ None Fabricated ------------ Grenade Launcher | x1 | -7/Factory Alien Tech Used ----------------- None Achievements -------------- Just What I Needed Universal Adapter Challenges ------------ None Game ------ Seed CloakBehemothFragment Manual? 0 Play Time 00:31:18 Cumulative 3.9 hours Start 2024.04.10 @ 23:19:08 End 2024.04.11 @ 00:14:59 Sessions 1 Manual Loads 0 Difficulty Rogue Special Mode None Game No. 5 Rogue 3 Adventurer 2 Explorer 0 Win Type - Total 0 Types 0/0/0/0/0/0/0/0/0 Lore% 7 Gallery% 9 Achievement% 10 Wizard Run 0 Options --------- Layout 1 ASCII 0 Keyboard 0 Movement Arrows Keybinds 0 Fullscreen 1 Font 32/SmallcapsGlow Map View 50x35 Zoom Use 0% Tactical HUD 1 Map Filters NONE Filters NONE Steam 1 RUN: 1c872b3a-3ca5-4105-ba0f-c48a1e987c2c